Cogmind - Beta 13 @@@ ROGUE MODE // 2024.04.04 @ 20:08:33 Player: Waste Result: Establishing 0b11! Performance ------------- Evolutions (9) 4500 Regions Visited (31) 6200 Robots Destroyed (288) 1440 Value Destroyed (13116) 13116 Prototype IDs (308) 6160 Alien Tech Used (1) 200 Bonus (36234) 36234 TOTAL SCORE: 67850 Bonus ------- High Alert Combat Kills 629 Follower Combat Kills 1929 Entered Garrisons 200 Network Hubs Disabled 400 Aligned with FarCom 300 Met Data Miner 300 Acquired ECA 300 Met Zhirov 300 Met Warlord at Base 500 MAIN.C Attacked Warlord 500 Warlord Defense Kills 1456 Built Enhanced Grunts 300 A7 Reached Mainframe 300 Met R17 at Cetus 500 Met R17 at Research 2000 Met Warlord at Research 2000 Destroyed MAIN.C Guards 500 Met MAIN.C 5000 Hacked MAIN.C 300 Destroyed MAIN.C Shell 5000 Destroyed MAIN.C 10000 Met Warlord at Command 2000 Win 3000 Friendly Fire -1480 Cogmind --------- Core Integrity 1525/1600 Matter 550/550 Energy 909/930 System Corruption 0% Temperature Cool (16) Movement Treading (238) Ox1 Location 0b11 Command Parts ------- > --- POWER (4) -------- Light Quantum Reactor Zero-point Reactor Vortex Chain Reactor > --- PROPULSION (6) --- Armored Medium Treads Advanced Heavy Siege Treads High-density Centrium Heavy Treads Experimental Biometal Medium Treads > --- UTILITY (11) ----- Advanced Cooling System Advanced Cooling System Huge Storage Unit Matter Compressor Experimental Targeting Computer Experimental Core Analyzer Advanced Kinecellerator Centrium Medium Armor Plating Heavy Reactive Plating Improved System Shield > --- WEAPON (4) ------- Enhanced Nova Cannon Enhanced Nova Cannon Cooled Nova Cannon Null Cannon > --- INVENTORY (25) --- Particle Reactor Vortex Chain Reactor Armored Medium Treads Armored Medium Treads Armored Medium Treads Long-range Terrain Scanner Advanced Kinecellerator Advanced Phase Shifter Experimental Phase Shifter Thermal Barrier Beam Splitter EM Disruption Field Advanced Force Field Antimissile System Antimissile System Long-range Tractor Beam Transdimensional Reconstructor Enhanced Nova Cannon Linear Accelerator Linear Accelerator Linear Accelerator Graviton Cannon Micro-nuke Launcher Advanced Remote Datajack Peak State ------------ > --- POWER ------------ Light Quantum Reactor Zero-point Reactor Vortex Chain Reactor > --- PROPULSION ------- Armored Medium Treads Advanced Heavy Siege Treads High-density Centrium Heavy Treads Experimental Biometal Medium Treads > --- UTILITY ---------- Advanced Cooling System Advanced Cooling System Huge Storage Unit Matter Compressor Experimental Targeting Computer Experimental Core Analyzer Advanced Kinecellerator Advanced Transmission Jammer Centrium Medium Armor Plating Improved System Shield Experimental System Purifier > --- WEAPON ----------- Enhanced Nova Cannon Enhanced Nova Cannon Cooled Nova Cannon Null Cannon > --- INVENTORY -------- Particle Reactor Particle Reactor Micro Antimatter Reactor Quantum Reactor Light Quantum Reactor Vortex Chain Reactor Armored Medium Treads Armored Medium Treads Armored Medium Treads Long-range Terrain Scanner Experimental Phase Shifter Beam Splitter EM Disruption Field Antimissile System Antimissile System Long-range Tractor Beam Transdimensional Reconstructor Enhanced Nova Cannon Hardcell Cannon Linear Accelerator Linear Accelerator Linear Accelerator Micro-nuke Launcher Advanced Remote Datajack [Rating: 231] Favorites ----------- Power Neutrino Core Engine Cooled Deuterium Engine Power Core Neutrino Core Reactor Quantum Reactor Propulsion Centrium Heavy Treads Treads Centrium Heavy Treads Leg Aluminum Leg Wheel Wheel Utility Huge Storage Unit Device Advanced Cooling System Storage Huge Storage Unit Processor Experimental Targeting Computer Hackware Improved Hacking Suite Protection Centrium Medium Armor Plating Weapon Enhanced Nova Cannon Energy Gun Advanced Variable Charge Gun Energy Cannon Enhanced Nova Cannon Ballistic Gun Gauss Rifle Ballistic Cannon Linear Accelerator Launcher Heavy Missile Launcher Special Weapon Advanced Remote Datajack Impact Weapon Great Maul Build | -11 -10 -10 -9 -9 -9 -8 -8 -8 -7 -7 -7 -6 -6 -6 -6 -6 -6 -5 -5 -5 -5 -4 -4 -4 -4 -4 -3 -3 -2 -1 -1 ------- Run | Yrd Mat Min Mat Min Exi Min Mat Gar Fac Low Dat Pro Fac Ext Cet Arc Hub Fac Upp Upp Zhi Pro Fac Upp Upp War Pro Res Res Acc Com Slots Evolved 18 | . . . 2 . . . 2 . 2 . . . 2 . . . . 2 . . . . 2 . . . . 2 2 2 . Power 3 | . . . . . . . . . . . . . . . . . . 1 . . . . . . . . . . 1 1 . Propulsion 4 | . . . 2 . . . . . . . . . . . . . . . . . . . . . . . . 2 . . . Utility 9 | . . . . . . . 2 . 1 . . . 2 . . . . 1 . . . . 1 . . . . . 1 1 . Weapon 2 | . . . . . . . . . 1 . . . . . . . . . . . . . 1 . . . . . . . . Parts Attached 428 | . 13 2 12 . . 2 44 15 19 . 3 7 29 15 7 10 3 8 7 3 7 18 45 7 8 21 21 15 26 16 45 Power 25 | . 1 1 1 . . . 4 . 1 . . . . 1 2 . . 1 . . 1 . 1 . . 2 . . 3 2 4 Engine 8 | . 1 1 . . . . 4 . 1 . . . . . 1 . . . . . . . . . . . . . . . . Core 5 | . . . 1 . . . . . . . . . . 1 . . . 1 . . . . 1 . . . . . 1 . . Reactor 12 | . . . . . . . . . . . . . . . 1 . . . . . 1 . . . . 2 . . 2 2 4 Propulsion 37 | . 4 . 5 . . . 11 . 3 . . . 2 1 2 . . . . . . . . . . . . 4 2 1 2 Treads 35 | . 2 . 5 . . . 11 . 3 . . . 2 1 2 . . . . . . . . . . . . 4 2 1 2 Leg . | . . . . . . . . . . . . . . . . . . . . . . . . . . . . . . . . Wheel 2 | . 2 . . . . . . . . . . . . . . . . . . . . . . . . . . . . . . Hover . | . . . . . . . . . . . . . . . . . . . . . . . . . . . . . . . . Flight . | . . . . . . . . . . . . . . . . . . . . . . . . . . . . . . . . Utility 241 | . 3 . 2 . . . 13 1 9 . . 1 17 6 1 7 2 6 5 1 5 15 38 7 4 18 21 7 13 13 26 Device 193 | . 1 . . . . . 6 1 7 . . 1 11 4 . 5 1 5 5 1 4 15 33 7 4 15 19 5 11 12 20 Storage 5 | . 1 . . . . . . . . . . . . . . . . . . . . . . . . 1 . 1 . . 2 Processor 8 | . . . . . . . 1 . 1 . . . 4 . . . . 1 . . . . . . . 1 . . . . . Hackware 4 | . . . . . . . . . . . . . . . . . . . . . . . . . . . 1 1 . . 2 Protection 31 | . 1 . 2 . . . 6 . 1 . . . 2 2 1 2 1 . . . 1 . 5 . . 1 1 . 2 1 2 Artifact . | . . . . . . . . . . . . . . . . . . . . . . . . . . . . . . . . Weapon 125 | . 5 1 4 . . 2 16 14 6 . 3 6 10 7 2 3 1 1 2 2 1 3 6 . 4 1 . 4 8 . 13 Energy Gun 14 | . 1 . 1 . . . 1 . . . . . 1 1 1 1 . 1 . 1 . . 1 . 2 . . 2 . . . Energy Cannon 34 | . . . . . . . 2 4 . . . 2 3 5 1 . 1 . 1 1 . 1 1 . . . . 1 4 . 7 Ballistic Gun 41 | . 4 . 3 . . 1 10 5 5 . 3 2 2 1 . 2 . . . . . . 1 . . . . 1 1 . . Ballistic Cannon 12 | . . . . . . . . . . . . . . . . . . . . . . 1 2 . 1 1 . . 3 . 4 Launcher 20 | . . 1 . . . 1 3 5 1 . . 2 2 . . . . . 1 . 1 1 1 . 1 . . . . . . Special Weapon 2 | . . . . . . . . . . . . . . . . . . . . . . . . . . . . . . . 2 Impact Weapon 2 | . . . . . . . . . . . . . 2 . . . . . . . . . . . . . . . . . . Slashing Weapon . | . . . . . . . . . . . . . . . . . . . . . . . . . . . . . . . . Piercing Weapon . | . . . . . . . . . . . . . . . . . . . . . . . . . . . . . . . . Special Melee Weapon . | . . . . . . . . . . . . . . . . . . . . . . . . . . . . . . . . Unidentified Prototypes 25 | . . . . . . . 4 . 1 . . . . . 3 1 . . . . 4 . 1 . . 6 . . 2 . 3 Parts Lost 19 | . 4 . 1 . . . . . . . . 2 2 3 . . . . . . . 1 1 . . . 1 . 2 . 2 Power 3 | . 1 . . . . . . . . . . . . 1 . . . . . . . . . . . . . . 1 . . Propulsion 4 | . 1 . 1 . . . . . . . . 1 . 1 . . . . . . . . . . . . . . . . . Utility 7 | . 1 . . . . . . . . . . 1 1 1 . . . . . . . 1 . . . . . . . . 2 Weapon 5 | . 1 . . . . . . . . . . . 1 . . . . . . . . . 1 . . . 1 . 1 . . Highest Loss Streak 1 | . 1 . 1 . . . . . . . . 1 1 1 . . . . . . . 1 1 . . . 1 . 1 . 1 To Critical Strikes . | . . . . . . . . . . . . . . . . . . . . . . . . . . . . . . . . Average Slot Usage (%) 92 | . 83 100 99 100 100 100 99 100 99 100 78 96 99 100 93 83 86 87 88 87 87 87 88 89 89 86 88 90 87 86 88 Engine 3 | . 12 14 8 . . . 7 9 7 7 7 7 6 3 . . . . . . . . . . . . . . . . . Core 2 | . . . 2 11 11 11 1 . . . . . . 2 . . . 5 5 5 5 5 5 5 5 4 . . 4 4 . Reactor 4 | . . . . . . . . . . . . . . . 4 6 6 5 5 5 5 5 5 5 5 5 10 9 7 10 14 Treads 21 | . 19 28 43 44 44 44 36 36 29 30 30 29 26 26 19 13 13 11 11 11 11 11 10 10 10 10 10 19 17 16 16 Device 11 | . 2 . . . . . 12 9 13 7 7 7 15 11 13 12 12 11 11 11 10 10 14 15 15 14 13 9 8 14 13 Storage 6 | . 14 14 11 11 11 11 9 9 7 7 7 7 6 6 6 6 6 5 5 5 5 5 5 5 5 5 5 4 4 4 5 Processor 13 | . . . . . . . 4 9 8 15 15 12 16 20 20 20 20 22 23 23 23 23 21 21 21 21 21 19 17 13 9 Hackware 1 | . . . . . . . . . . . . . . . . . . . . . . . . . . . . 3 4 4 8 Protection 6 | . . 14 11 11 11 11 9 9 7 7 7 7 6 7 6 4 6 5 5 5 5 5 5 5 5 5 6 4 4 3 4 Energy Gun 2 | . 3 . 1 . . . . . . . . . . 5 . 5 6 5 11 11 11 6 6 5 5 5 5 9 2 . . Energy Cannon 4 | . . . . . . . . 5 . . . . . 12 18 3 . 4 3 4 4 4 4 5 5 5 5 4 7 12 12 Ballistic Gun 8 | . 24 19 20 22 22 20 17 10 22 23 2 19 17 1 . 10 12 5 . . . . 5 5 5 5 5 4 . . . Ballistic Cannon 1 | . . . . . . . . . . . . . . . . . . . . . . 1 3 5 4 2 5 . 5 4 2 Naked Turns . | . . . . . . . . . . . . . . . . . . . . . . . . . . . . . . . . Heaviest Build 254 | 11 91 92 94 94 94 94 105 112 114 111 111 110 120 121 136 136 132 149 145 142 141 145 157 151 150 170 169 162 204 214 254 Greatest Support 237 | 20 40 40 80 80 80 80 89 87 88 88 88 88 92 92 160 160 160 160 160 160 160 160 160 160 160 160 160 187 196 194 237 Greatest Overweight (x) 8 | . 8 2 1 1 1 1 1 1 1 1 1 1 1 1 1 . . . . . . . . . . 1 1 . 1 1 1 Average Overweight (x) . | . 3 2 1 1 1 1 1 1 1 1 1 1 1 1 . . . . . . . . . . . . . . . 1 . Largest Inventory Capacity 25 | . 25 25 25 25 25 25 25 25 25 25 25 25 25 25 25 25 25 25 25 25 25 25 25 25 25 25 25 25 25 25 25 Average Capacity 24 | . 24 25 25 25 25 25 25 25 25 25 25 25 25 25 25 25 25 25 25 25 25 25 25 25 25 25 25 25 25 25 25 Most Carried 25 | . 25 25 25 25 25 24 25 25 25 25 25 25 25 25 25 25 25 25 25 25 25 25 25 25 25 25 25 25 25 24 25 Average Carried 24 | . 17 24 24 25 24 24 24 24 24 25 25 25 24 24 24 24 25 24 25 24 24 24 23 25 24 24 25 24 24 23 23 Final Capacity 25 | 8 25 25 25 25 25 25 25 25 25 25 25 25 25 25 25 25 25 25 25 25 25 25 25 25 25 25 25 25 25 25 25 Final Carried 25 | 6 24 25 25 25 24 24 25 25 25 25 25 25 24 25 25 25 25 25 25 25 25 25 25 25 25 25 25 25 25 24 25 Class Distribution -------------------- 33% | Scavenger-Skirmisher 17% | Mutant 12% | Scavenger-Gunner 8% | Scavenger-Mutant 6% | Tank 5% | Gunner 4% | Generator-Gunner 3% | Commander-Gunner 3% | Scavenger-Tank Dominant Class ---------------- Mutant | -10/Materials Mutant | -10/Mines Scavenger-Mutant | -9/Materials Scavenger-Mutant | -9/Mines Scavenger-Mutant | -9/Exiles Scavenger-Mutant | -8/Mines Mutant | -8/Materials Mutant | -8/Garrison Tank | -7/Factory Tank | -7/Lower Caves Mutant | -7/Data Miner Scavenger-Skirmisher | -6/Proximity Caves Tank | -6/Factory Gunner | -6/Extension Commander-Gunner | -6/Cetus Scavenger-Gunner | -6/Archives Scavenger-Gunner | -6/Hub_04(d) Scavenger-Skirmisher | -5/Factory Scavenger-Skirmisher | -5/Upper Caves Scavenger-Skirmisher | -5/Upper Caves Scavenger-Skirmisher | -5/Zhirov Scavenger-Skirmisher | -4/Proximity Caves Scavenger-Skirmisher | -4/Factory Scavenger-Skirmisher | -4/Upper Caves Scavenger-Skirmisher | -4/Upper Caves Scavenger-Skirmisher | -4/Warlord Scavenger-Skirmisher | -3/Proximity Caves Scavenger-Skirmisher | -3/Research Scavenger-Skirmisher | -2/Research Scavenger-Gunner | -1/Access Generator-Gunner | -1/Command Resources | -11 -10 -10 -9 -9 -9 -8 -8 -8 -7 -7 -7 -6 -6 -6 -6 -6 -6 -5 -5 -5 -5 -4 -4 -4 -4 -4 -3 -3 -2 -1 -1 ----------- Run | Yrd Mat Min Mat Min Exi Min Mat Gar Fac Low Dat Pro Fac Ext Cet Arc Hub Fac Upp Upp Zhi Pro Fac Upp Upp War Pro Res Res Acc Com Matter Collected 10336 | 200 515 87 231 . . 10 1495 420 856 . . 178 542 355 101 252 99 356 112 20 . 320 1369 76 147 436 268 263 350 251 1027 Remotely 3117 | . . . . . . . 112 . 321 . . . 137 . . 163 . 68 . . . 13 1089 48 . 147 . 131 75 98 715 Salvage Created 11653 | . 470 90 317 . . 21 1634 308 1086 . . 91 621 637 40 450 447 316 85 . . 491 1458 . 54 677 420 131 363 635 811 Parts 642 | . 33 11 20 2 . 4 92 22 47 . . 10 50 28 1 35 24 12 2 . . 20 86 . 5 34 22 7 5 32 38 Haulers Intercepted 6 | . 2 . . . . . 3 . . . . . . . . . . 1 . . . . . . . . . . . . . Recyclers Shooed 9 | . 2 . . . . . . . 4 . . . . 2 . . . . . . . . . . . . . . . . 1 Parts Field Recycled . | . . . . . . . . . . . . . . . . . . . . . . . . . . . . . . . . Retrieved Matter . | . . . . . . . . . . . . . . . . . . . . . . . . . . . . . . . . Parts Self-Destructed 48 | . . . . . . . . . . . . 7 . . . . . . 2 . . 12 . . 5 . 22 . . . . Prevented 6 | . . . . . . . . . . . . . . . . . . . . . . . . 1 1 . 4 . . . . Kills | -11 -10 -10 -9 -9 -9 -8 -8 -8 -7 -7 -7 -6 -6 -6 -6 -6 -6 -5 -5 -5 -5 -4 -4 -4 -4 -4 -3 -3 -2 -1 -1 ------- Run | Yrd Mat Min Mat Min Exi Min Mat Gar Fac Low Dat Pro Fac Ext Cet Arc Hub Fac Upp Upp Zhi Pro Fac Upp Upp War Pro Res Res Acc Com Combat Hostiles Destroyed 219 | . 10 5 5 . . 4 28 15 13 . . 4 10 10 . 2 3 6 4 . . 20 26 . 4 10 9 4 5 9 13 Guns 100 | . 10 2 5 . . . 25 2 9 . . . 5 7 . . 2 5 1 . . 2 11 . 1 6 2 4 1 . . Cannons 55 | . . . . . . . 1 1 . . . . . 3 . 2 . 1 . . . 2 11 . . 4 6 . 4 7 13 AOE 61 | . . 3 . . . 4 2 12 4 . . 4 5 . . . 1 . 3 . . 16 4 . 3 . . . . . . Classes Destroyed 24 | . 4 1 3 1 . . 3 1 2 . . 1 . . . . . . . . . 1 3 . . 3 . . 1 . . Worker 16 | . . 1 1 . . . 1 . 4 . . . 4 . . . 2 . . . . . 2 . . . . . . . 1 Builder 11 | . . . . . . . 3 . 1 . . . 4 . . . . . . . . . 3 . . . . . . . . Tunneler 1 | . . . . 1 . . . . . . . . . . . . . . . . . . . . . . . . . . . Hauler 6 | . 2 . . . . . 3 . . . . . . . . . . 1 . . . . . . . . . . . . . Recycler 9 | . . . 1 . . . . . 7 . . . 1 . . . . . . . . . . . . . . . . . . Mechanic 2 | . . . . . . . . . 1 . . . . . . . . . . . . . . . . 1 . . . . . Operator 11 | . . . 1 . . . 1 . . . . . . 1 . 8 . . . . . . . . . . . . . . . Drone 4 | . . . . . . . . . . . . 2 . . . . . . . . . . . . . . 2 . . . . Watcher 10 | . 1 . 1 . . . 5 . 1 . . . 1 . 1 . . . . . . . . . . . . . . . . Swarmer 55 | . 3 3 . . . 4 3 7 4 . . . 3 . . . . 5 . . . 15 . . 4 . . 4 . . . Cutter 3 | . . . . . . . . . . . . . . . . . . . . . . . 3 . . . . . . . . Grunt 54 | . 7 2 3 . . . 14 6 3 . . . . 6 . . 1 . 3 . . . 3 . . 4 . . . . 2 Brawler 4 | . . . . . . . 1 . 1 . . . . . . . . . . . . . . . . 1 . . . . 1 Duelist 6 | . . . . . . . 2 . 1 . . . . 1 . . . . 1 . . . 1 . . . . . . . . Protector 2 | . . . . . . . . . . . . . . . . . . . . . . . 1 . . 1 . . . . . Sentry 21 | . . . 2 . . . 8 1 . . . . 1 3 . 2 1 . . . . . 2 . . . . . . 1 . Demolisher 3 | . . . . . . . . . . . . . . . . . . . . . . . . . . 2 . . 1 . . Specialist 2 | . . . . . . . . . . . . . . . . . . . . . . . . . . 1 1 . . . . Hunter 21 | . . . . . . . . 1 2 . . 2 2 . . . . 1 . . . . 4 . . . 1 . 2 2 4 Programmer 32 | . . . . . . . . . 2 . . . 4 . . . 1 . . . . . 11 . . . 5 . . 6 3 Heavy 2 | . . . . . . . . . . . . . . . . . . . . . . . 1 . . . . . . . 1 Enhanced Grunt 3 | . . . . . . . . . . . . . . . . . 3 . . . . . . . . . . . . . . Combat Programmer 1 | . . . . . . . . . . . . . . . . . . . . . . . . . . . . . . . 1 Striker 1 | . . . . . . . . . . . . . . . . . . . . . . . . . . . . . 1 . . Executioner 2 | . . . . . . . . . . . . . . . . . . . . . . . . . . 1 . . 1 . . Savage 3 | . . . . . . . . . . . . . . . . . . . . . . 3 . . . . . . . . . Butcher 1 | . . . . . . . . . . . . . . . . . . . . . . 1 . . . . . . . . . Mutant 1 | . . . . . . . . . . . . . . . . . . . . . . 1 . . . . . . . . . Best Kill Streak 12 | . 3 4 4 1 . 4 3 4 5 . . 2 12 3 1 3 1 5 4 . . 5 6 . 4 4 2 4 3 2 4 Combat Bots Only 5 | . 3 3 3 . . 4 3 4 4 . . 2 5 3 . 2 1 5 4 . . 5 5 . 4 4 2 4 3 2 4 Max Kills in Single Turn 4 | . 1 3 1 1 . 3 2 3 3 . . 2 4 1 1 1 3 1 3 . . 3 4 . 2 2 1 1 1 1 1 Gunslinging 1 | . . . . . . . 1 . . . . . . . . . . . . . . . . . . . . . . . . Exploded 3 | . . 3 . . . 3 1 3 3 . . 2 2 . . . 1 . 3 . . 3 2 . 2 . . . . . . Melee . | . . . . . . . . . . . . . . . . . . . . . . . . . . . . . . . . Uniques/NPCs Destroyed 1 | . . . . . . . . . . . . . . . . . . . . . . . . . . . . . . . 1 MAIN.C (-1/Command) Combat | -11 -10 -10 -9 -9 -9 -8 -8 -8 -7 -7 -7 -6 -6 -6 -6 -6 -6 -5 -5 -5 -5 -4 -4 -4 -4 -4 -3 -3 -2 -1 -1 -------- Run | Yrd Mat Min Mat Min Exi Min Mat Gar Fac Low Dat Pro Fac Ext Cet Arc Hub Fac Upp Upp Zhi Pro Fac Upp Upp War Pro Res Res Acc Com Hostile Shots Fired 1084 | . 63 30 31 . . 5 146 27 54 . . 3 110 77 14 1 31 34 5 6 . 33 95 . 9 39 41 21 70 52 87 Missed 320 | . 18 6 8 . . 1 40 9 15 . . 2 34 23 5 . 15 7 2 2 . 12 33 . 4 9 5 4 15 15 36 Intercepted 20 | . . . . . . . . . . . . . . . . . . . . . . . . . . . . . . . 20 Damage Taken 13328 | . 568 312 327 . . 82 1477 223 532 . . 377 860 773 205 78 704 208 42 70 . 286 1016 . 59 712 552 346 1236 528 1755 Core 1130 | . 87 77 26 . . 27 94 8 9 . . 161 50 62 10 . 179 17 . . . 45 22 . 1 60 36 30 54 41 34 Absorbed by Shields 2842 | . . . . . . . 219 57 189 . . 19 77 118 88 . . 199 15 . . 89 370 . 23 263 172 92 395 . 457 Reduced by Siege Mode 265 | . . . . . . . . . . . . . . . . . . . 4 . . . 92 . . 2 21 18 73 14 41 Ignored by Resistances 210 | . . . . . . . . . . . . . . . . . . . . . . . 45 . . 147 5 . . 13 . Regen/Repaired (Parts) 1078 | . . . . . . . 184 . . . . . . . . . . . . . . . . . . 693 . . . 201 . Core Remaining (%) 82 | 100 . 34 . . . 86 . 81 . . . 75 . . . . 64 . . . . 93 . . . . 89 97 96 . 95 Volleys Fired 740 | . 58 14 25 . . 2 125 27 37 . . 11 41 26 6 22 10 37 17 8 . 28 77 2 10 25 24 7 17 23 61 Largest 4 | . 2 2 2 . . 1 2 2 3 . . 2 3 3 3 3 3 3 2 1 . 3 4 1 3 4 4 3 4 4 4 Hottest 426 | . 40 40 46 . . 30 68 160 79 . . 160 131 245 260 260 325 194 161 85 . 223 289 90 213 270 270 203 392 426 426 Shots Fired 1681 | . 116 26 48 . . 2 247 44 109 . . 12 86 78 17 66 25 45 19 8 . 56 213 3 16 65 64 19 48 66 183 Gun 959 | . 116 24 46 . . . 240 22 108 . . . 67 45 1 54 23 17 4 . . 15 95 1 3 25 27 18 8 . . Cannon 662 | . . . . . . . 3 10 . . . 2 13 33 16 12 2 28 12 8 . 28 116 2 11 40 37 1 40 66 182 Launcher 59 | . . 2 2 . . 2 4 12 1 . . 10 6 . . . . . 3 . . 13 2 . 2 . . . . . . Special 1 | . . . . . . . . . . . . . . . . . . . . . . . . . . . . . . . 1 Kinetic 956 | . 116 24 46 . . . 240 22 108 . . . 61 17 . 36 16 7 . . . 12 89 . 3 30 26 6 15 10 72 Thermal 665 | . . . . . . . 3 10 . . . 2 19 61 17 30 9 38 16 8 . 31 122 3 11 35 38 13 33 56 110 Explosive 59 | . . 2 2 . . 2 4 12 1 . . 10 6 . . . . . 3 . . 13 2 . 2 . . . . . . Electromagnetic . | . . . . . . . . . . . . . . . . . . . . . . . . . . . . . . . . Robot Hit Streak 38 | . 10 12 15 . . 3 24 8 23 . . . 12 31 8 9 11 9 14 . . 20 29 . 12 11 21 8 31 38 31 Robot Miss Streak 5 | . 5 1 2 . . . 4 1 2 . . 1 2 1 3 2 1 2 . . . 3 2 . 1 2 1 2 . 3 4 Penetration Max 1 | . . . . . . . . . 1 . . . . . . 1 . . . . . . 1 . . 1 . . . . . Secondary Targets 6 | . . 1 . . . . 1 . 1 . . . . 1 . . . . . . . . . . . . . 2 . . . Max Gunslinging Chain 1 | . . 1 . . . . 1 . 1 . . . . 1 . . . . . . . . . . . . . 1 . . . Shots Hit Robots 1015 | . 77 21 36 . . 2 181 16 86 . . . 49 59 10 39 11 17 5 . . 28 129 . 4 30 34 13 28 27 113 Core Hits 548 | . 33 8 13 . . 4 74 23 42 . . 7 35 31 5 27 12 11 13 . . 31 65 . 4 21 13 8 14 11 43 Critical Kills 20 | . . . . . . . . . . . . . . . . 1 . . . . . 2 7 . . 5 2 1 . 2 . Critical Parts Destroyed 24 | . 1 . 1 . . . . . . . . . . . . 3 . . . . . 2 13 . . 2 2 . . . . Critical Strikes 57 | . 1 . 1 . . . . . . . . . . 2 . 4 . . . . . 5 23 . 1 10 5 1 . 2 2 Burn 8 | . . . . . . . . . . . . . . 2 . . . . . . . 1 3 . . 1 1 . . . . Meltdown 3 | . . . . . . . . . . . . . . . . . . . . . . . . . . . 1 . . 2 . Destroy 43 | . 1 . 1 . . . . . . . . . . . . 4 . . . . . 4 20 . . 9 3 1 . . . Blast 3 | . . . . . . . . . . . . . . . . . . . . . . . . . 1 . . . . . 2 Melee Attacks 2 | . . . . . . . . . . . . . 2 . . . . . . . . . . . . . . . . . . Impact 2 | . . . . . . . . . . . . . 2 . . . . . . . . . . . . . . . . . . Slashing . | . . . . . . . . . . . . . . . . . . . . . . . . . . . . . . . . Piercing . | . . . . . . . . . . . . . . . . . . . . . . . . . . . . . . . . Sneak Attacks 1 | . . . . . . . . . . . . . 1 . . . . . . . . . . . . . . . . . . Combat Hostiles . | . . . . . . . . . . . . . . . . . . . . . . . . . . . . . . . . Follow-up Attacks . | . . . . . . . . . . . . . . . . . . . . . . . . . . . . . . . . Damage Inflicted 31607 | . 627 459 489 1 . 197 3359 1287 2235 . . 262 1763 1450 306 1306 792 417 551 . . 1715 4352 . 326 1149 939 384 1072 1240 4929 Guns 13429 | . 627 209 439 . . . 2947 144 1726 . . . 953 713 . 1113 280 278 60 . . 187 2085 . 50 543 493 361 221 . . Cannons 11489 | . . . . . . . 20 57 . . . . . 720 306 193 . 119 . . . 378 1678 . 38 606 446 . 851 1240 4837 Explosions 6109 | . . 246 37 . . 197 282 1086 302 . . 262 698 . . . 479 . 491 . . 1150 581 . 238 . . . . . 60 Melee 87 | . . . . . . . . . . . . . 87 . . . . . . . . . . . . . . . . . . Ramming 493 | . . 4 13 1 . . 110 . 207 . . . 25 17 . . 33 20 . . . . 8 . . . . 23 . . 32 Kinetic 13526 | . 627 209 439 . . . 2947 144 1726 . . . 819 239 . 716 186 60 . . . 134 1472 . 61 594 334 82 300 74 2363 Thermal 11836 | . . . . . . . 20 57 121 . . . 134 1194 306 590 94 337 60 . . 431 2614 . 27 555 605 279 772 1166 2474 Explosive 5186 | . . 246 37 . . 197 282 1086 181 . . 262 698 . . . . . 491 . . 1150 258 . 238 . . . . . 60 Electromagnetic 479 | . . . . . . . . . . . . . . . . . 479 . . . . . . . . . . . . . . Impact 87 | . . . . . . . . . . . . . 87 . . . . . . . . . . . . . . . . . . Slashing . | . . . . . . . . . . . . . . . . . . . . . . . . . . . . . . . . Piercing . | . . . . . . . . . . . . . . . . . . . . . . . . . . . . . . . . Highest Corruption 8 | . . . . . . . 5 5 2 2 2 4 3 3 4 4 7 . . . . . 5 5 5 5 1 . . 3 8 Average Corruption 3 | . . . . . . . 4 5 1 2 2 2 1 3 3 3 2 . . . . . 3 5 5 5 1 . . 2 6 Corruption Purged 12 | . . . . . . . . . . . . . . . . 4 . . . . . . . . . . . . . . 8 Corruption Blocked 76 | . . . . . . . . . . . . . . . . . . . . . . . . . . . . . 59 . 17 Effects 296 | . . . . . . . 13 28 19 1 1 8 21 38 8 5 4 . . . . . 23 15 23 1 5 . . 18 65 Message Errors 57 | . . . . . . . 4 1 8 . . 4 8 5 . . . . . . . . 4 . 8 . 1 . . 3 11 Matter Fused 75 | . . . . . . . . 10 5 . . 2 4 10 2 3 2 . . . . . 4 6 5 . 1 . . 4 17 Heat Flow Errors 43 | . . . . . . . 2 4 3 . 1 . 2 8 1 . . . . . . . 3 1 3 . 1 . . 4 10 Energy Discharges 38 | . . . . . . . 4 6 2 . . 2 4 5 1 . . . . . . . 2 2 1 . . . . 2 7 Parts Fused 5 | . . . . . . . . 1 . . . . . 2 . . . . . . . . . 1 1 . . . . . . Data Loss (minor) 31 | . . . . . . . 2 1 . 1 . . 1 5 2 . 1 . . . . . 3 2 1 . 1 . . 3 8 Data Loss (major) 8 | . . . . . . . . 2 1 . . . 1 1 1 . . . . . . . . . . 1 . . . . 1 Misfires 24 | . . . . . . . 1 2 . . . . 1 1 1 1 . . . . . . 4 1 4 . 1 . . 2 5 Alerts 6 | . . . . . . . . 1 . . . . . . . . 1 . . . . . 1 2 . . . . . . 1 Weapon Failures 9 | . . . . . . . . . . . . . . 1 . 1 . . . . . . 2 . . . . . . . 5 Overload Shots 7 | . . . . . . . . . . . . . . . 1 . 1 . . . . . . . . . . . . . 5 Overflow Damage 509 | . . 30 . . . . . 81 . . . 6 57 . . . 16 . 6 . . 110 36 . 40 22 20 . 26 32 27 Projectiles 128 | . . . . . . . . . . . . . . . . . . . . . . . 1 . . 22 20 . 26 32 27 Explosions 324 | . . 30 . . . . . 81 . . . 6 . . . . 16 . 6 . . 110 35 . 40 . . . . . . Melee 57 | . . . . . . . . . . . . . 57 . . . . . . . . . . . . . . . . . . Knockbacks 16 | . . . . . . . . . . . . . 1 . . . . . . . . . 3 . . 1 2 . 1 . 8 Impact 1 | . . . . . . . . . . . . . 1 . . . . . . . . . . . . . . . . . . Kinetic 15 | . . . . . . . . . . . . . . . . . . . . . . . 3 . . 1 2 . 1 . 8 Secondary . | . . . . . . . . . . . . . . . . . . . . . . . . . . . . . . . . Self-Inflicted Damage 490 | . . . . . . 52 . 30 . . . 85 64 . . . 189 . . . . . 62 . 8 . . . . . . Shots 15 | . . . . . . 2 . 2 . . . 3 4 . . . 2 . . . . . 1 . 1 . . . . . . Rammed 37 | . 1 1 . . . . 9 . 11 . . . 3 3 . . 2 2 . . . . 1 . . . . 2 . . 2 Targets Rammed 48 | . 1 1 2 1 . . 12 . 16 . . . 3 3 . . 2 2 . . . . 1 . . . . 2 . . 2 Kicked . | . . . . . . . . . . . . . . . . . . . . . . . . . . . . . . . . Crushed 11 | . . . 2 1 . . 3 . 5 . . . . . . . . . . . . . . . . . . . . . . Highest Temperature 501 | . 36 101 27 . . . 208 273 203 . 105 72 261 340 151 45 168 68 176 176 . 401 355 194 144 167 346 . 282 459 501 Average Temperature 86 | . 12 52 8 . . . 37 83 83 . 63 40 109 75 56 30 59 34 77 75 . 110 95 82 68 83 75 . 91 150 133 Received Heat Transfer 2055 | . 285 177 138 . . . 668 50 66 . . . 66 199 37 12 63 . 18 . . 27 49 . . 69 24 9 . 9 89 Effects 12 | . . . . . . . . . . . . . . . . . . . . . . . 2 . . . 1 . . 2 7 Shutdowns 9 | . . . . . . . . . . . . . . . . . . . . . . . 1 . . . 1 . . 1 6 Energy Bleed 2 | . . . . . . . . . . . . . . . . . . . . . . . 1 . . . . . . . 1 Interference 1 | . . . . . . . . . . . . . . . . . . . . . . . . . . . . . . 1 . Siege Activations 37 | . . . . . . . . . . . . . . . . . . . 1 . . 3 11 . . 2 6 1 4 6 3 Total Turns 874 | . . . . . . . . . . . . . . . . . . . 13 . . 23 254 . . 5 52 22 32 35 438 Longest Duration 406 | . . . . . . . . . . . . . . . . . . . 13 . . 13 86 . . 3 24 22 16 10 406 Robots Corrupted 1 | . . . . . . . . . . . . . . . . . 1 . . . . . . . . . . . . . . Combat Hostiles . | . . . . . . . . . . . . . . . . . . . . . . . . . . . . . . . . Parts Fried 4 | . . . . . . . . . . . . . 3 . . . 1 . . . . . . . . . . . . . . Impact Corruptions 1 | . . . . . . . . . . . . . 1 . . . . . . . . . . . . . . . . . . Robots Melted 3 | . . . . . . . . . . . . . . . . . . . . . . . . . . . 1 . . 2 . Combat Hostiles 3 | . . . . . . . . . . . . . . . . . . . . . . . . . . . 1 . . 2 . Parts Melted 43 | . . . . . . . . . . . . . . 2 1 1 . . . . . 2 10 . . 3 10 1 3 9 1 Heat Transferred 14505 | . . . . . . . 37 100 100 . . . 250 2518 397 766 148 481 74 . . 666 3613 . 37 866 844 370 703 925 1610 Parts Sabotaged . | . . . . . . . . . . . . . . . . . . . . . . . . . . . . . . . . Parts Stolen . | . . . . . . . . . . . . . . . . . . . . . . . . . . . . . . . . Parts Stripped . | . . . . . . . . . . . . . . . . . . . . . . . . . . . . . . . . Power Chain Reactions . | . . . . . . . . . . . . . . . . . . . . . . . . . . . . . . . . Alert | -11 -10 -10 -9 -9 -9 -8 -8 -8 -7 -7 -7 -6 -6 -6 -6 -6 -6 -5 -5 -5 -5 -4 -4 -4 -4 -4 -3 -3 -2 -1 -1 ------- Run | Yrd Mat Min Mat Min Exi Min Mat Gar Fac Low Dat Pro Fac Ext Cet Arc Hub Fac Upp Upp Zhi Pro Fac Upp Upp War Pro Res Res Acc Com Peak Influence 928 | . 195 154 180 22 . 103 291 928 660 . . . 254 471 648 587 735 430 . . . . 856 . . . . 132 89 210 276 Initial 487 | . . . . 17 . . 39 159 487 . . . 181 88 207 259 135 351 . . . . 138 . . . . . . 1 52 Average 178 | . 60 54 79 20 . 14 139 479 518 . . . 68 124 408 513 476 304 . . . . 376 . . . . 44 10 70 130 Maximum Alert Level 3 | . . . . . . . 1 3 2 . . . 1 2 2 2 3 2 . . . . 3 . . . . . . 1 1 Low Security (%) 65 | . 100 100 100 100 . 100 75 8 . . . . 87 78 1 . 23 20 . . . . 32 . . . . 100 100 99 42 Level 1 20 | . . . . . . . 24 23 . . . . 12 21 55 12 1 70 . . . . 40 . . . . . . . 57 Level 2 12 | . . . . . . . . 56 100 . . . . . 43 87 65 9 . . . . 6 . . . . . . . . Level 3 2 | . . . . . . . . 11 . . . . . . . . 10 . . . . . 20 . . . . . . . . Level 4 . | . . . . . . . . . . . . . . . . . . . . . . . . . . . . . . . . Level 5 . | . . . . . . . . . . . . . . . . . . . . . . . . . . . . . . . . High Security . | . . . . . . . . . . . . . . . . . . . . . . . . . . . . . . . . Max Security . | . . . . . . . . . . . . . . . . . . . . . . . . . . . . . . . . Squads Dispatched 50 | . 1 . . . . . 2 . 5 . . . 5 1 . . 3 1 . . . . 13 . . . . 2 . 7 10 Investigation 7 | . . . . . . . 2 . 2 . . . . . . . 1 . . . . . . . . . . . . . 2 Extermination 19 | . . . . . . . . . 2 . . . 4 . . . 1 1 . . . . 4 . . . . . . 3 4 Reinforcement 15 | . 1 . . . . . . . . . . . 1 1 . . 1 . . . . . 4 . . . . 2 . 1 4 Assault 3 | . . . . . . . . . 1 . . . . . . . . . . . . . 2 . . . . . . . . Garrison 6 | . . . . . . . . . . . . . . . . . . . . . . . 3 . . . . . . 3 . Intercept . | . . . . . . . . . . . . . . . . . . . . . . . . . . . . . . . . Searches Triggered . | . . . . . . . . . . . . . . . . . . . . . . . . . . . . . . . . Construction Impeded 2 | . . . . . . . . . . . . . 1 . . . 1 . . . . . . . . . . . . . . Haulers Reinforced . | . . . . . . . . . . . . . . . . . . . . . . . . . . . . . . . . Active Scanning Responses . | . . . . . . . . . . . . . . . . . . . . . . . . . . . . . . . . Cargo Convoy Interrupts . | . . . . . . . . . . . . . . . . . . . . . . . . . . . . . . . . Stealth | -11 -10 -10 -9 -9 -9 -8 -8 -8 -7 -7 -7 -6 -6 -6 -6 -6 -6 -5 -5 -5 -5 -4 -4 -4 -4 -4 -3 -3 -2 -1 -1 --------- Run | Yrd Mat Min Mat Min Exi Min Mat Gar Fac Low Dat Pro Fac Ext Cet Arc Hub Fac Upp Upp Zhi Pro Fac Upp Upp War Pro Res Res Acc Com Distress Signals 43 | . . . 1 . . . 8 . . . . . . . 2 . . . . . . . 3 . . . . 6 1 . 22 Communications Jammed . | . . . . . . . . . . . . . . . . . . . . . . . . . . . . . . . . Distress Signals . | . . . . . . . . . . . . . . . . . . . . . . . . . . . . . . . . Times Spotted 403 | . 17 5 10 . . 4 44 8 21 . . 3 13 34 15 15 16 12 4 2 . 17 31 1 4 33 10 17 5 9 53 Peak Tracking Total 14 | . 3 2 5 . . 4 4 3 5 . . 2 6 4 5 2 5 5 4 2 . 5 5 1 4 14 2 6 3 3 5 Tactical Retreats 11 | . . . 3 . . . 1 . . . . . . . . . . 1 . . . . 2 1 . 3 . . . . . Traps | -11 -10 -10 -9 -9 -9 -8 -8 -8 -7 -7 -7 -6 -6 -6 -6 -6 -6 -5 -5 -5 -5 -4 -4 -4 -4 -4 -3 -3 -2 -1 -1 ------- Run | Yrd Mat Min Mat Min Exi Min Mat Gar Fac Low Dat Pro Fac Ext Cet Arc Hub Fac Upp Upp Zhi Pro Fac Upp Upp War Pro Res Res Acc Com Traps Triggered 16 | . 2 . . . . . 4 6 . . . . . 1 . . . . . . . . . . . . . 1 . 1 1 Indirectly . | . . . . . . . . . . . . . . . . . . . . . . . . . . . . . . . . Trap Hack Attempts . | . . . . . . . . . . . . . . . . . . . . . . . . . . . . . . . . Triggered . | . . . . . . . . . . . . . . . . . . . . . . . . . . . . . . . . Disarmed . | . . . . . . . . . . . . . . . . . . . . . . . . . . . . . . . . Reprogrammed . | . . . . . . . . . . . . . . . . . . . . . . . . . . . . . . . . Reused . | . . . . . . . . . . . . . . . . . . . . . . . . . . . . . . . . Traps Extracted . | . . . . . . . . . . . . . . . . . . . . . . . . . . . . . . . . Installed . | . . . . . . . . . . . . . . . . . . . . . . . . . . . . . . . . Triggered 16 | . . . . . . . . . . . . . . . . . . . . 1 . . . 2 1 11 1 . . . . Machines | -11 -10 -10 -9 -9 -9 -8 -8 -8 -7 -7 -7 -6 -6 -6 -6 -6 -6 -5 -5 -5 -5 -4 -4 -4 -4 -4 -3 -3 -2 -1 -1 ---------- Run | Yrd Mat Min Mat Min Exi Min Mat Gar Fac Low Dat Pro Fac Ext Cet Arc Hub Fac Upp Upp Zhi Pro Fac Upp Upp War Pro Res Res Acc Com Machines Disabled 48 | . . . 1 . . . . 7 7 . . . . 1 1 4 4 . . . . . 16 1 . . 1 . . 1 4 Max in Single Turn 14 | . . . 1 . . . . 2 7 . . . . . 1 1 2 . . . . . 14 1 . . 1 . . 1 2 Garrison Access 5 | . . . . . . . . . 1 . . . . . . . 1 . . . . . . . . . . . 2 1 . Garrison Relay 3 | . . . . . . . . 3 . . . . . . . . . . . . . . . . . . . . . . . Phase Generator 2 | . . . . . . . . 1 . . . . . . . . . . . . . . . . . . . . . . 1 Network Hub 2 | . . . . . . . . . . . . . . . . . 2 . . . . . . . . . . . . . . Machines Repaired . | . . . . . . . . . . . . . . . . . . . . . . . . . . . . . . . . Machines Dismantled . | . . . . . . . . . . . . . . . . . . . . . . . . . . . . . . . . Machines Sabotaged . | . . . . . . . . . . . . . . . . . . . . . . . . . . . . . . . . Overloaded Fab Kills . | . . . . . . . . . . . . . . . . . . . . . . . . . . . . . . . . Hacking | -11 -10 -10 -9 -9 -9 -8 -8 -8 -7 -7 -7 -6 -6 -6 -6 -6 -6 -5 -5 -5 -5 -4 -4 -4 -4 -4 -3 -3 -2 -1 -1 --------- Run | Yrd Mat Min Mat Min Exi Min Mat Gar Fac Low Dat Pro Fac Ext Cet Arc Hub Fac Upp Upp Zhi Pro Fac Upp Upp War Pro Res Res Acc Com Machines Accessed 74 | . 5 . . . 1 . 14 2 4 . 3 . 6 4 1 . 5 2 1 1 4 . 1 1 1 . . 4 . 7 7 Terminals 48 | . 5 . . . . . 10 2 2 . . . 3 4 1 . 4 2 . . . . . . . . . 4 . 4 7 Fabricators 2 | . . . . . . . . . . . . . 1 . . . . . . . . . 1 . . . . . . . . Repair Stations 4 | . . . . . . . 2 . . . . . 1 . . . . . . . . . . . . . . . . 1 . Recycling Units 3 | . . . . . . . 1 . 1 . . . 1 . . . . . . . . . . . . . . . . . . Scanalyzers . | . . . . . . . . . . . . . . . . . . . . . . . . . . . . . . . . Garrison Access 5 | . . . . . . . 1 . 1 . . . . . . . 1 . . . . . . . . . . . . 2 . Total Hacks 204 | . 12 . . . 1 . 32 3 9 . 24 . 13 11 1 . 9 5 1 1 17 . 3 1 1 . . 17 . 15 28 Successful 110 | . 6 . . . 1 . 18 2 4 . 24 . 6 4 . . 3 . 1 1 17 . . 1 1 . . 6 . 7 8 Failed 94 | . 6 . . . . . 14 1 5 . . . 7 7 1 . 6 5 . . . . 3 . . . . 11 . 8 20 Catastrophic 32 | . 3 . . . . . 4 . . . . . 2 2 1 . 2 4 . . . . 2 . . . . 3 . 4 5 Database Lockouts . | . . . . . . . . . . . . . . . . . . . . . . . . . . . . . . . . Manual 89 | . 8 . . . 1 . 16 . 2 . . . 7 7 1 . 8 4 . . . . 3 . . 1 . 11 . 5 15 Terminals 133 | . 12 . . . . . 24 3 6 . . . 7 11 1 . 8 5 . . . . . . . . . 17 . 11 28 Fabricators 5 | . . . . . . . . . . . . . 2 . . . . . . . . . 3 . . . . . . . . Repair Stations 9 | . . . . . . . 5 . . . . . 2 . . . . . . . . . . . . . . . . 2 . Recycling Units 4 | . . . . . . . 1 . 1 . . . 2 . . . . . . . . . . . . . . . . . . Scanalyzers . | . . . . . . . . . . . . . . . . . . . . . . . . . . . . . . . . Garrison Access 7 | . . . . . . . 2 . 2 . . . . . . . 1 . . . . . . . . . . . . 2 . Terminal Hacks 80 | . 6 . . . 1 . 10 2 1 . 24 . 3 2 . . . . 1 1 17 . . 1 1 . . 3 . 3 4 Record 14 | . . . . . . . . . . . 6 . . . . . . . . . 5 . . 1 . . . . . 1 1 Part Schematic 16 | . . . . . . . 1 . . . 11 . . . . . . . . . 4 . . . . . . . . . . Robot Schematic 4 | . . . . . . . . . . . 4 . . . . . . . . . . . . . . . . . . . . Robot Analysis 7 | . 2 . . . . . 1 . . . . . . . . . . . . . 4 . . . . . . . . . . Prototype ID Bank 11 | . . . . . . . 3 . . . 3 . 1 . . . . . . . 4 . . . . . . . . . . Open Door 4 | . . . . . . . . . . . . . . . . . . . 1 1 . . . . 1 . . . . . 1 Branch Access Points 2 | . 1 . . . . . . . . . . . 1 . . . . . . . . . . . . . . . . . . Emergency Access Points 1 | . . . . . . . . 1 . . . . . . . . . . . . . . . . . . . . . . . Terminal Index 2 | . . . . . . . . . . . . . . . . . . . . . . . . . . . . . . 1 1 Recycling Unit Index 1 | . . . . . . . 1 . . . . . . . . . . . . . . . . . . . . . . . . Alert Level 3 | . . . . . . . 1 . . . . . . . . . . . . . . . . . . . . 1 . 1 . Unreport Threat 6 | . . . . . . . 1 . 1 . . . 1 2 . . . . . . . . . . . . . 1 . . . Maintenance Status 1 | . . . . . . . 1 . . . . . . . . . . . . . . . . . . . . . . . . Security Status 1 | . . . . . . . 1 . . . . . . . . . . . . . . . . . . . . . . . . Transport Status 1 | . 1 . . . . . . . . . . . . . . . . . . . . . . . . . . . . . . Hauler Manifests 1 | . 1 . . . . . . . . . . . . . . . . . . . . . . . . . . . . . . Registered Components 1 | . 1 . . . . . . . . . . . . . . . . . . . . . . . . . . . . . . Zone Layout 1 | . . . . . . . . . . . . . . . . . . . . . . . . . . . . 1 . . . Security Stations 1 | . . . . . . . . 1 . . . . . . . . . . . . . . . . . . . . . . . Derelict Proto ID Bank 1 | . . . . . 1 . . . . . . . . . . . . . . . . . . . . . . . . . . Disengage Seal 1 | . . . . . . . . . . . . . . . . . . . . . . . . . . . . . . . 1 Fabricator Hacks . | . . . . . . . . . . . . . . . . . . . . . . . . . . . . . . . . Repair Station Hacks 7 | . . . . . . . 4 . . . . . 1 . . . . . . . . . . . . . . . . 2 . Scan Component 4 | . . . . . . . 2 . . . . . 1 . . . . . . . . . . . . . . . . 1 . Repair 3 | . . . . . . . 2 . . . . . . . . . . . . . . . . . . . . . . 1 . Recycling Unit Hacks . | . . . . . . . . . . . . . . . . . . . . . . . . . . . . . . . . Scanalyzer . | . . . . . . . . . . . . . . . . . . . . . . . . . . . . . . . . Garrison Access Hacks 4 | . . . . . . . 1 . 1 . . . . . . . 1 . . . . . . . . . . . . 1 . Unlock Access 1 | . . . . . . . 1 . . . . . . . . . . . . . . . . . . . . . . . . Seal Access 3 | . . . . . . . . . 1 . . . . . . . 1 . . . . . . . . . . . . 1 . Unauthorized Hacks 19 | . . . . . . . 3 . 2 . . . 2 2 . . 2 . . . . . . . . . . 3 . 1 4 Terminals 17 | . . . . . . . 2 . 1 . . . 2 2 . . 2 . . . . . . . . . . 3 . 1 4 Botnet 16 | . . . . . . . 2 . 1 . . . 2 2 . . 1 . . . . . . . . . . 3 . 1 4 Sabotage 1 | . . . . . . . . . . . . . . . . . 1 . . . . . . . . . . . . . . Fabricators . | . . . . . . . . . . . . . . . . . . . . . . . . . . . . . . . . Repair Stations . | . . . . . . . . . . . . . . . . . . . . . . . . . . . . . . . . Recycling Units 2 | . . . . . . . 1 . 1 . . . . . . . . . . . . . . . . . . . . . . Tunnel 2 | . . . . . . . 1 . 1 . . . . . . . . . . . . . . . . . . . . . . Scanalyzers . | . . . . . . . . . . . . . . . . . . . . . . . . . . . . . . . . Garrison Access . | . . . . . . . . . . . . . . . . . . . . . . . . . . . . . . . . Data Cores Recovered 4 | . . . 1 . . . 1 . . . . . . 1 . . 1 . . . . . . . . . . . . . . Used 2 | . . . . . . . 1 . . . . . . . . . 1 . . . . . . . . . . . . . . Hacking Detections 50 | . 5 . . . . . 12 1 3 . . . 5 3 1 . 3 2 . . . . 1 . . . . 4 . 5 5 Full Trace Events 2 | . . . . . . . . . 1 . . . . . . . . . . . . . . . . . . . . . 1 Feedback Events 1 | . . . . . . . . . 1 . . . . . . . . . . . . . . . . . . . . . . Corruption 1 | . . . . . . . . . 1 . . . . . . . . . . . . . . . . . . . . . . Feedback Blocked . | . . . . . . . . . . . . . . . . . . . . . . . . . . . . . . . . Robot Schematics Acquired 4 | . . . . . . . . . . . 4 . . . . . . . . . . . . . . . . . . . . Robots Built . | . . . . . . . . . . . . . . . . . . . . . . . . . . . . . . . . Authchips . | . . . . . . . . . . . . . . . . . . . . . . . . . . . . . . . . Time . | . . . . . . . . . . . . . . . . . . . . . . . . . . . . . . . . Total Robot Build Rating . | . . . . . . . . . . . . . . . . . . . . . . . . . . . . . . . . Part Schematics Acquired 16 | . . . . . . . 1 . . . 11 . . . . . . . . . 4 . . . . . . . . . . Parts Built . | . . . . . . . . . . . . . . . . . . . . . . . . . . . . . . . . Authchips . | . . . . . . . . . . . . . . . . . . . . . . . . . . . . . . . . Time . | . . . . . . . . . . . . . . . . . . . . . . . . . . . . . . . . Total Part Build Rating . | . . . . . . . . . . . . . . . . . . . . . . . . . . . . . . . . Parts Repaired 3 | . . . . . . . 2 . . . . . . . . . . . . . . . . . . . . . . 1 . Time 86 | . . . . . . . 64 . . . . . . . . . . . . . . . . . . . . . . 22 . Parts Recycled . | . . . . . . . . . . . . . . . . . . . . . . . . . . . . . . . . Recycled Matter . | . . . . . . . . . . . . . . . . . . . . . . . . . . . . . . . . Retrieved Matter . | . . . . . . . . . . . . . . . . . . . . . . . . . . . . . . . . Retrieved Components . | . . . . . . . . . . . . . . . . . . . . . . . . . . . . . . . . Parts Scanalyzed . | . . . . . . . . . . . . . . . . . . . . . . . . . . . . . . . . Part Schematics Acquired . | . . . . . . . . . . . . . . . . . . . . . . . . . . . . . . . . Parts Damaged . | . . . . . . . . . . . . . . . . . . . . . . . . . . . . . . . . Bothacking | -11 -10 -10 -9 -9 -9 -8 -8 -8 -7 -7 -7 -6 -6 -6 -6 -6 -6 -5 -5 -5 -5 -4 -4 -4 -4 -4 -3 -3 -2 -1 -1 ------------ Run | Yrd Mat Min Mat Min Exi Min Mat Gar Fac Low Dat Pro Fac Ext Cet Arc Hub Fac Upp Upp Zhi Pro Fac Upp Upp War Pro Res Res Acc Com Used RIF Installer . | . . . . . . . . . . . . . . . . . . . . . . . . . . . . . . . . Robots Hacked 1 | . . . . . . . . . . . . . . . . . . . . . . . . . . . . . . . 1 Non-combat . | . . . . . . . . . . . . . . . . . . . . . . . . . . . . . . . . Combat . | . . . . . . . . . . . . . . . . . . . . . . . . . . . . . . . . Robot Hacks Applied . | . . . . . . . . . . . . . . . . . . . . . . . . . . . . . . . . Manual 1 | . . . . . . . . . . . . . . . . . . . . . . . . . . . . . . . 1 Relay Couplers Released 14 | . . . . . . . . 11 . . . . . . . . 3 . . . . . . . . . . . . . . Machine Destruction 14 | . . . . . . . . 11 . . . . . . . . 3 . . . . . . . . . . . . . . Fabnet Peak Effective % . | . . . . . . . . . . . . . . . . . . . . . . . . . . . . . . . . Robots Rewired 14 | . . . . . . . . . . . . . . 14 . . . . . . . . . . . . . . . . . Allies Hacked . | . . . . . . . . . . . . . . . . . . . . . . . . . . . . . . . . Hacks Repelled . | . . . . . . . . . . . . . . . . . . . . . . . . . . . . . . . . Allies | -11 -10 -10 -9 -9 -9 -8 -8 -8 -7 -7 -7 -6 -6 -6 -6 -6 -6 -5 -5 -5 -5 -4 -4 -4 -4 -4 -3 -3 -2 -1 -1 -------- Run | Yrd Mat Min Mat Min Exi Min Mat Gar Fac Low Dat Pro Fac Ext Cet Arc Hub Fac Upp Upp Zhi Pro Fac Upp Upp War Pro Res Res Acc Com Total Allies 35 | . . . . . . . . . . . . . . 27 5 . . . . . . . . . . . . 3 . . . Largest Group 22 | . . . . . . . . . . . . . . 22 22 8 5 . . . . . . . . . . 3 . . . Highest-Rated Group 968 | . . . . . . . . . . . . . . 754 968 690 480 . . . . . . . . . . 138 . . . Highest-Rated Ally 159 | . . . . . . . . . . . . . . 159 143 143 96 . . . . . . . . . . 46 . . . Total Orders 1 | . . . . . . . . . . . . . . . 1 . . . . . . . . . . . . . . . . STAY 1 | . . . . . . . . . . . . . . . 1 . . . . . . . . . . . . . . . . Ally Attacks 321 | . . . . . . . . . . . . . . 178 83 17 40 . . . . . . . . . . 3 . . . Total Damage 9286 | . . . . . . . . . . . . . . 3389 2787 924 2134 . . . . . . . . . . 52 . . . Kills 51 | . . . . . . . . . . . . . . 23 16 3 9 . . . . . . . . . . . . . . Allies Corrupted 1 | . . . . . . . . . . . . . . . . . 1 . . . . . . . . . . . . . . Allies Melted 3 | . . . . . . . . . . . . . . 1 . . . . . . . . . . . . . . 2 . . Intel | -11 -10 -10 -9 -9 -9 -8 -8 -8 -7 -7 -7 -6 -6 -6 -6 -6 -6 -5 -5 -5 -5 -4 -4 -4 -4 -4 -3 -3 -2 -1 -1 ------- Run | Yrd Mat Min Mat Min Exi Min Mat Gar Fac Low Dat Pro Fac Ext Cet Arc Hub Fac Upp Upp Zhi Pro Fac Upp Upp War Pro Res Res Acc Com Robot Analysis Total 7 | . 2 . . . . . 1 . . . . . . . . . . . . . 4 . . . . . . . . . . Derelict Logs Recovered 13 | . . 1 . . . . . . . . . 2 . . . . . . 2 3 . 2 . 2 1 . . . . . . Drone Launches . | . . . . . . . . . . . . . . . . . . . . . . . . . . . . . . . . Drone Recoveries . | . . . . . . . . . . . . . . . . . . . . . . . . . . . . . . . . Exploration | -11 -10 -10 -9 -9 -9 -8 -8 -8 -7 -7 -7 -6 -6 -6 -6 -6 -6 -5 -5 -5 -5 -4 -4 -4 -4 -4 -3 -3 -2 -1 -1 ------------- Run | Yrd Mat Min Mat Min Exi Min Mat Gar Fac Low Dat Pro Fac Ext Cet Arc Hub Fac Upp Upp Zhi Pro Fac Upp Upp War Pro Res Res Acc Com Turns Passed 32012 | . 1260 662 617 100 523 170 3355 1215 1175 20 198 693 2407 1917 384 425 716 835 671 614 284 1111 1602 575 906 708 880 1184 2314 1596 2895 Spaces Moved 13063 | 1 430 194 204 41 216 68 1099 462 423 9 86 294 939 674 149 194 414 439 379 319 166 578 661 332 415 306 389 671 993 557 961 Core . | . . . . . . . . . . . . . . . . . . . . . . . . . . . . . . . . Treads 12853 | . 221 194 204 41 216 68 1099 462 423 9 86 294 939 674 149 194 414 439 379 319 166 578 661 332 415 306 389 671 993 557 961 Legs 13 | 1 12 . . . . . . . . . . . . . . . . . . . . . . . . . . . . . . Wheels 197 | . 197 . . . . . . . . . . . . . . . . . . . . . . . . . . . . . . Hover . | . . . . . . . . . . . . . . . . . . . . . . . . . . . . . . . . Flight . | . . . . . . . . . . . . . . . . . . . . . . . . . . . . . . . . Fastest Speed 120 | 120 120 320 240 242 242 242 235 235 225 225 225 225 231 235 160 160 160 160 160 160 160 160 160 160 160 160 160 160 163 249 156 Average Speed 205 | 120 242 320 240 242 242 242 239 235 228 225 225 225 233 240 221 160 160 160 160 160 160 160 160 160 160 162 172 160 219 249 220 Slowest Speed 320 | 120 320 320 242 242 242 242 242 235 235 225 225 225 235 241 246 160 160 160 160 160 160 160 160 160 160 240 240 163 250 250 249 Overloaded Moves . | . . . . . . . . . . . . . . . . . . . . . . . . . . . . . . . . Propulsion Burnouts . | . . . . . . . . . . . . . . . . . . . . . . . . . . . . . . . . Robots Hopped . | . . . . . . . . . . . . . . . . . . . . . . . . . . . . . . . . Cave-ins Triggered 1 | . . . . . . . . . . . . 1 . . . . . . . . . . . . . . . . . . . Exploration Rate (%) 43 | 2 78 53 19 9 62 30 88 60 14 2 69 41 23 83 63 81 36 15 47 52 60 74 16 45 57 41 58 25 40 17 44 Regions Visited 31 Branch Regions 20 Pre-discovered Areas 9 | . . 1 . . . . 1 . 1 1 1 . . . . . . . . . 3 1 . . . . . . . . . Known Exits Taken 22 | . 1 . . . . . 1 . 1 1 1 . 1 1 1 1 1 1 1 1 1 1 1 1 1 1 1 1 1 . . Unknown Exits Taken 8 | 1 . 1 1 1 1 1 . . . . . 1 . . . . . . . . . . . . . . . . . 1 . Scrap Searched 12 | . . . . . . . . . . . . . . . . . . . 2 2 . 3 . . 3 . 2 . . . . Spaces Dug 140 | . . . . . . . . 2 . . . 27 11 . . . 2 15 5 3 . 10 33 1 2 1 3 1 8 10 6 Terrain Destroyed 1228 | . . 15 9 . . 14 7 120 36 . . 66 59 1 5 8 314 27 50 8 . 140 125 1 31 10 34 1 19 34 94 Melee 1 | . . . . . . . . . . . . . 1 . . . . . . . . . . . . . . . . . . Projectile 307 | . . . . . . . . . 2 . . . 13 1 5 8 7 27 12 8 . 11 82 1 10 10 34 1 19 34 22 AOE 920 | . . 15 9 . . 14 7 120 34 . . 66 45 . . . 307 . 38 . . 129 43 . 21 . . . . . 72 Terrain Rammed . | . . . . . . . . . . . . . . . . . . . . . . . . . . . . . . . . Walls Destroyed . | . . . . . . . . . . . . . . . . . . . . . . . . . . . . . . . . Machines Disabled . | . . . . . . . . . . . . . . . . . . . . . . . . . . . . . . . . Actions | -11 -10 -10 -9 -9 -9 -8 -8 -8 -7 -7 -7 -6 -6 -6 -6 -6 -6 -5 -5 -5 -5 -4 -4 -4 -4 -4 -3 -3 -2 -1 -1 --------- Run | Yrd Mat Min Mat Min Exi Min Mat Gar Fac Low Dat Pro Fac Ext Cet Arc Hub Fac Upp Upp Zhi Pro Fac Upp Upp War Pro Res Res Acc Com Total 16907 | . 550 210 299 41 219 71 1592 550 530 10 91 311 1081 917 200 262 448 530 421 415 185 720 1051 370 644 470 545 762 1093 715 1604 Wait 2087 | . 20 . 18 . . . 246 32 18 2 . . 46 28 17 21 16 34 19 80 2 83 258 30 205 99 109 52 28 118 506 Move 13030 | . 429 193 203 40 215 67 1099 460 422 8 85 292 938 673 148 193 413 438 378 318 165 577 660 331 414 305 388 670 992 556 960 Hop . | . . . . . . . . . . . . . . . . . . . . . . . . . . . . . . . . Pick Up 155 | . 24 . 17 . 1 . 19 2 6 . . . 9 7 7 7 2 6 . 2 2 7 4 . 2 4 . 8 10 . 9 Fast Attach 92 | . 2 . 2 . . . 15 . 4 . 3 . 3 5 4 3 . 1 . 2 7 1 4 . 2 10 3 3 8 3 7 Attach 43 | . 4 . 2 . . . 1 . 3 . . . 5 4 . 2 . 2 . . . 1 3 . . 2 . 4 5 2 3 Detach 6 | . 1 . . . . . . . . . . . 1 2 1 . . . . . . . . . . . . . 1 . . Swap 294 | . 7 2 8 . . 2 28 15 12 . . 7 21 6 3 5 3 5 7 1 1 16 38 7 6 9 18 8 13 11 35 Drop 242 | . 4 . 22 . 3 . 47 2 12 . 3 . 12 10 14 9 2 5 . 4 8 7 6 . 5 16 3 8 19 2 19 Fire 740 | . 58 14 25 . . 2 125 27 37 . . 11 41 26 6 22 10 37 17 8 . 28 77 2 10 25 24 7 17 23 61 Melee 2 | . . . . . . . . . . . . . 2 . . . . . . . . . . . . . . . . . . Ram . | . . . . . . . . . . . . . . . . . . . . . . . . . . . . . . . . Kick . | . . . . . . . . . . . . . . . . . . . . . . . . . . . . . . . . Crush 48 | . 1 1 2 1 . . 12 . 16 . . . 3 3 . . 2 2 . . . . 1 . . . . 2 . . 2 Escape Stasis 15 | . . . . . . . . 12 . . . 1 . 2 . . . . . . . . . . . . . . . . . Rewire 153 | . . . . . . . . . . . . . . 151 . . . . . . . . . . . . . . . . 2 Trap . | . . . . . . . . . . . . . . . . . . . . . . . . . . . . . . . . Miscellaneous . | . . . . . . . . . . . . . . . . . . . . . . . . . . . . . . . . Route ------- -11/Scrapyard -10/Materials (discovered 3 exits: [*Mat] / *Min x2) -10/Mines -9/Materials -9/Mines -9/Exiles (discovered 2 exits: [*Min x2]) -8/Mines -8/Materials (discovered 3 exits: *Fac x2 / Gar) -8/Garrison (discovered 2 exits: *Fac x2) -7/Factory (discovered 2 exits: Sto / *Low) -7/Lower Caves -7/Data Miner -6/Proximity Caves -6/Factory (discovered 7 exits: *Fac x3 / Low x2 / *Ext x2) -6/Extension (discovered 2 exits: *Fac / *Cet) -6/Cetus (discovered 2 exits: *Fac / *Arc) -6/Archives (discovered 3 exits: *Fac / *Hub x2) -6/Hub_04(d) (discovered 2 exits: *Fac x2) -5/Factory -5/Upper Caves -5/Upper Caves (discovered 2 exits: *Fac / *Zhi) -5/Zhirov -4/Proximity Caves -4/Factory -4/Upper Caves -4/Upper Caves (discovered 2 exits: Res / *War) -4/Warlord -3/Proximity Caves -3/Research (discovered 3 exits: *Res / *Arm / Qua) -2/Research (discovered 3 exits: *Acc / *Tes x2) -1/Access -1/Command (discovered 2 exits: [*Sur x2]) 0b11 Command History --------- Turn | Location | Event 1 | -11/Scrapyard | Discovered new exit (range 0) 1 | -11/Scrapyard | Entered Materials 240 | -10/Materials | Discovered new exit (range 16) 318 | -10/Materials | Build established: Mutant 611 | -10/Materials | Identified exit to Mines 876 | -10/Materials | Discovered new exit (range 7) 1261 | -10/Materials | Entered Mines 1263 | -10/Mines | Met a Derelict bent on vengeance 1276 | -10/Mines | Core integrity fell below 50% 1470 | -10/Mines | Learned location of Storage (-7) 1884 | -10/Mines | Discovered new exit (range 15) 1923 | -10/Mines | Entered Materials 1923 | -9/Materials | Evolved 2 slots: Propulsion x2 2174 | -9/Materials | Discovered new exit (range 16) 2433 | -9/Materials | Build established: Scavenger-Mutant 2540 | -9/Materials | Entered Mines 2628 | -9/Mines | Deemed a non-threat by the Exiles lab entrance 2630 | -9/Mines | Discovered new exit (range 5) 2640 | -9/Mines | Entered Exiles 2672 | -9/Exiles | Discovered new exit (range 15) 2701 | -9/Exiles | Met 8R-AWN 2742 | -9/Exiles | Met EX-HEX 2807 | -9/Exiles | Met EX-BIN 2834 | -9/Exiles | Aligned with FarCom system 2837 | -9/Exiles | Given EX-Vault access code 2892 | -9/Exiles | Opened EX-Vault 2915 | -9/Exiles | Found YOLO Cannon 2967 | -9/Exiles | Warned to stay clear of 0b10 Research branches 3035 | -9/Exiles | Met EX-DEC 3137 | -9/Exiles | Discovered new exit (range 14) 3163 | -9/Exiles | Left Exiles lab with YOLO Cannon 3163 | -9/Exiles | Entered Mines 3304 | -8/Mines | Discovered new exit (range 9) 3333 | -8/Mines | Entered Materials 3333 | -8/Materials | Evolved 2 slots: Utility x2 3414 | -8/Materials | Repaired Lgt. Armor Plating 4780 | -8/Materials | Discovered new exit (range 16) 5322 | -8/Materials | Build established: Mutant 6135 | -8/Materials | Repaired Hrd. Medium Armor Plating 6199 | -8/Materials | Discovered new exit (range 16) 6688 | -8/Materials | Identified exit to Garrison 6688 | -8/Materials | Entered Garrison 6773 | -8/Garrison | Triggered checkpoint 6788 | -8/Garrison | Garrison Relay disabled 6825 | -8/Garrison | Learned Factory security intel 6930 | -8/Garrison | Triggered checkpoint 7069 | -8/Garrison | Triggered checkpoint 7399 | -8/Garrison | Discovered new exit (range 12) 7432 | -8/Garrison | Attempted to access garrison exit controls, blocked by remote lockdown 7570 | -8/Garrison | Triggered checkpoint 7762 | -8/Garrison | Garrison Relay disabled 7819 | -8/Garrison | Discovered new exit (range 10) 7878 | -8/Garrison | Phase Generator disabled 7903 | -8/Garrison | Entered Factory 7903 | -7/Factory | Evolved 2 slots: Utility x1, Weapon x1 7904 | -7/Factory | Identified exit to Storage 8233 | -7/Factory | Build established: Tank 8303 | -7/Factory | First assault squad dispatched 8783 | -7/Factory | Discovered new exit (range 15) 8825 | -7/Factory | Identified exit to Lower Caves 9078 | -7/Factory | Entered Lower Caves 9081 | -7/Lower Caves | A Derelict revealed a hidden shortcut to meet someone special 9083 | -7/Lower Caves | Identified exit to Data Miner 9084 | -7/Lower Caves | Met a Warlord Commander 9085 | -7/Lower Caves | Learned location of Warlord (-4) 9086 | -7/Lower Caves | Warlord Commander delivered Encrypted Comm Array 9098 | -7/Lower Caves | Entered Data Miner 9098 | -7/Data Miner | Discovered new exit (range 6) 9107 | -7/Data Miner | Identified exit to Proximity Caves 9143 | -7/Data Miner | Met Data Miner 9208 | -7/Data Miner | Learned location of Section 7 (-3) 9208 | -7/Data Miner | Acquired the access code to Warlord's prototype stash 9226 | -7/Data Miner | Received God Mode back door access code from Data Miner 9296 | -7/Data Miner | Entered Proximity Caves 9298 | -6/Proximity Caves | Spotter reported a threat 9592 | -6/Proximity Caves | Build established: Scavenger-Skirmisher 9749 | -6/Proximity Caves | Crushed by falling debris 9859 | -6/Proximity Caves | Learned Factory trap positions 9946 | -6/Proximity Caves | Discovered new exit (range 13) 9989 | -6/Proximity Caves | Entered Factory 9989 | -6/Factory | Evolved 2 slots: Utility x2 9990 | -6/Factory | Loaded intel: 111 trap records 10460 | -6/Factory | Discovered new exit (range 13) 10543 | -6/Factory | Identified exit to Factory 10621 | -6/Factory | Discovered exit to Factory (range 13) 10660 | -6/Factory | Build established: Scavenger-Tank 11186 | -6/Factory | Build established: Tank 11305 | -6/Factory | Discovered exit to Factory (range 12) 11470 | -6/Factory | Found Exp. Targeting Computer 11484 | -6/Factory | Identified exit to Lower Caves 11484 | -6/Factory | Identified exit to Extension 11647 | -6/Factory | Found Launcher Loader 12169 | -6/Factory | Build established: Gunner 12396 | -6/Factory | Entered Extension 12495 | -6/Extension | Rescued a captive Derelict 12753 | -6/Extension | Rescued A7 13100 | -6/Extension | Rescued a captive Derelict 13101 | -6/Extension | Rescued a captive Derelict 13529 | -6/Extension | Build established: Commander-Gunner 13560 | -6/Extension | Spotted B-75 Beast 13577 | -6/Extension | Spotted B-75 Beast 13598 | -6/Extension | Allies destroyed B-75 Beast 13627 | -6/Extension | Lost 3 allies 13765 | -6/Extension | Rescued a captive Derelict 13766 | -6/Extension | Rescued a captive Derelict 13782 | -6/Extension | Rescued a captive Derelict 13908 | -6/Extension | Rescued a captive Derelict 13910 | -6/Extension | Rescued a captive Derelict 14013 | -6/Extension | Rescued a captive Derelict 14014 | -6/Extension | Rescued a captive Derelict 14085 | -6/Extension | Rescued a captive Derelict 14171 | -6/Extension | Rescued a captive Derelict 14268 | -6/Extension | Discovered exit to Factory (range 10) 14270 | -6/Extension | Discovered new exit (range 6) 14303 | -6/Extension | Identified exit to Cetus 14313 | -6/Extension | Entered Cetus 14313 | -6/Cetus | Accompanied by 22 allies (A7) 14318 | -6/Cetus | Acquired a Cetus Manufacturing Module code from A7 14340 | -6/Cetus | Spotted Cetus Guard 14340 | -6/Cetus | Spotted Cetus Guard 14342 | -6/Cetus | Spotted Cetus Guard 14342 | -6/Cetus | Spotted Cetus Guard 14350 | -6/Cetus | Allies destroyed Cetus Guard 14350 | -6/Cetus | Allies destroyed Cetus Guard 14353 | -6/Cetus | Allies destroyed Cetus Guard 14360 | -6/Cetus | Allies destroyed Cetus Guard 14390 | -6/Cetus | Lost 5 allies 14473 | -6/Cetus | Escorted A7 to Cetus Mainframe 14491 | -6/Cetus | Started Cetus Manufacturing Module 14516 | -6/Cetus | Manufactured an Enhanced Grunt 14521 | -6/Cetus | Discovered new exit (range 15) 14541 | -6/Cetus | Manufactured an Enhanced Grunt 14566 | -6/Cetus | Manufactured an Enhanced Grunt 14568 | -6/Cetus | Spotted Cetus Guard 14568 | -6/Cetus | Spotted Cetus Guard 14571 | -6/Cetus | Spotted Cetus Guard 14571 | -6/Cetus | Spotted Cetus Guard 14581 | -6/Cetus | Allies destroyed Cetus Guard 14585 | -6/Cetus | Allies destroyed Cetus Guard 14587 | -6/Cetus | Allies destroyed Cetus Guard 14591 | -6/Cetus | Manufactured an Enhanced Grunt 14592 | -6/Cetus | Allies destroyed Cetus Guard 14594 | -6/Cetus | Discovered exit to Factory (range 15) 14609 | -6/Cetus | Lost 3 allies 14612 | -6/Cetus | Met Revision 17 14616 | -6/Cetus | Manufactured an Enhanced Grunt 14679 | -6/Cetus | Identified exit to Archives 14697 | -6/Cetus | Entered Archives 14697 | -6/Archives | Accompanied by 8 allies (A7) 14702 | -6/Archives | Received a hacking code to weaken MAIN.C 14741 | -6/Archives | Discovered new exit (range 16) 14854 | -6/Archives | Discovered new exit (range 15) 14956 | -6/Archives | Discovered exit to Factory (range 15) 15014 | -6/Archives | Build established: Scavenger-Gunner 15114 | -6/Archives | Identified exit to Hub_04(d) 15122 | -6/Archives | Entered Hub_04(d) 15122 | -6/Hub_04(d) | Accompanied by 5 allies 15274 | -6/Hub_04(d) | Discovered exit to Factory (range 16) 15288 | -6/Hub_04(d) | Discovered exit to Factory (range 15) 15643 | -6/Hub_04(d) | Network Hub disabled 15763 | -6/Hub_04(d) | Network Hub disabled 15800 | -6/Hub_04(d) | Spotted Lightning 15801 | -6/Hub_04(d) | Spotted Lightning 15813 | -6/Hub_04(d) | Spotted Lightning 15838 | -6/Hub_04(d) | Entered Factory 15838 | -5/Factory | Evolved 2 slots: Power x1, Utility x1 15839 | -5/Factory | Identified exit to Upper Caves 16171 | -5/Factory | Build established: Scavenger-Skirmisher 16673 | -5/Factory | Entered Upper Caves 16732 | -5/Upper Caves | Build established: Scavenger-Gunner 16793 | -5/Upper Caves | Encountered a Warlord checkpoint 16813 | -5/Upper Caves | Learned Factory emergency access door positions 17034 | -5/Upper Caves | Build established: Scavenger-Skirmisher 17062 | -5/Upper Caves | Identified exit to Upper Caves 17344 | -5/Upper Caves | Entered another Upper Caves area 17360 | -5/Upper Caves | Discovered new exit (range 17) 17618 | -5/Upper Caves | Learned Factory trap positions 17805 | -5/Upper Caves | Learned Factory terminal intel 17927 | -5/Upper Caves | Discovered new exit (range 19) 17956 | -5/Upper Caves | Identified exit to Zhirov 17958 | -5/Upper Caves | Entered Zhirov 17958 | -5/Zhirov | Discovered new exit (range 3) 17987 | -5/Zhirov | Met Zhirov 18016 | -5/Zhirov | Learned location of Quarantine (-3) 18016 | -5/Zhirov | Learned location of Testing (-2) 18016 | -5/Zhirov | Learned location of Command (-1) 18030 | -5/Zhirov | Zhirov requested help retrieving the SGEMP Prototype 18073 | -5/Zhirov | Found Alien Artifact 18073 | -5/Zhirov | Identified Integrated Dissipator 18073 | -5/Zhirov | Installed Integrated Dissipator, increased core heat dissipation (+20) 18094 | -5/Zhirov | Found Alien Artifact 18236 | -5/Zhirov | Identified exit to Proximity Caves 18242 | -5/Zhirov | Entered Proximity Caves 18730 | -4/Proximity Caves | Learned location of 1 exit from Research 19199 | -4/Proximity Caves | Discovered new exit (range 9) 19212 | -4/Proximity Caves | Identified exit to Factory 19353 | -4/Proximity Caves | Entered Factory 19353 | -4/Factory | Evolved 2 slots: Utility x1, Weapon x1 19354 | -4/Factory | Loaded intel: 72 trap records 19356 | -4/Factory | Loaded intel: 25 terminal locations 20010 | -4/Factory | Garrison activated, responded to threat 20649 | -4/Factory | First assault squad dispatched 20909 | -4/Factory | Discovered new exit (range 10) 20923 | -4/Factory | Identified exit to Upper Caves 20955 | -4/Factory | Entered Upper Caves 21290 | -4/Upper Caves | Learned Research garrison access intel 21459 | -4/Upper Caves | Discovered new exit (range 18) 21502 | -4/Upper Caves | Identified exit to Upper Caves 21530 | -4/Upper Caves | Entered another Upper Caves area 21649 | -4/Upper Caves | Discovered new exit (range 20) 21782 | -4/Upper Caves | Identified exit to Warlord 21932 | -4/Upper Caves | Encountered a Warlord checkpoint 22436 | -4/Upper Caves | Entered Warlord 22490 | -4/Warlord | System corruption cleaned by Quarantine Array 22622 | -4/Warlord | Met Warlord 22637 | -4/Warlord | Opened Warlord's prototype stash 22647 | -4/Warlord | Warlord's base attacked by MAIN.C 22653 | -4/Warlord | Found Prototype Device 22653 | -4/Warlord | Identified System Purifier 22679 | -4/Warlord | Found Prototype Reactor 22974 | -4/Warlord | Spotted Executioner 22975 | -4/Warlord | Spotted Executioner 22997 | -4/Warlord | Warlord forces counterattacked 23026 | -4/Warlord | Found Prototype Processor 23026 | -4/Warlord | Identified Exp. Core Analyzer 23048 | -4/Warlord | Spotted Executioner 23076 | -4/Warlord | Destroyed Executioner 23094 | -4/Warlord | Discovered new exit (range 14) 23099 | -4/Warlord | Found Prototype Device 23099 | -4/Warlord | Identified Adv. Kinecellerator 23105 | -4/Warlord | Lost 14 allies 23141 | -4/Warlord | Identified exit to Proximity Caves 23144 | -4/Warlord | Entered Proximity Caves 23615 | -3/Proximity Caves | Acquired the password to a Derelict Tinkerer's latest research 23779 | -3/Proximity Caves | Discovered new exit (range 24) 23828 | -3/Proximity Caves | Caught by Unaware searching for contraband prototypes 23872 | -3/Proximity Caves | Caught by Unaware searching for contraband prototypes 24015 | -3/Proximity Caves | Attracted the attention of an 0b10 checkpoint 24023 | -3/Proximity Caves | Identified exit to Research 24024 | -3/Proximity Caves | Entered Research 24024 | -3/Research | Evolved 2 slots: Propulsion x2 24025 | -3/Research | Identified exit to Quarantine 24026 | -3/Research | Identified exit to Armory 24027 | -3/Research | Loaded intel: 4 garrison access locations 24224 | -3/Research | Revision forces began assault on 0b10 24251 | -3/Research | Met up with Revision 17++ 24611 | -3/Research | Lost 3 allies 24724 | -3/Research | Research terminal network offline 25118 | -3/Research | Discovered new exit (range 16) 25194 | -3/Research | Identified exit to Research 25208 | -3/Research | Entered another Research area 25208 | -2/Research | Warlord forces began assault on 0b10 25208 | -2/Research | Evolved 2 slots: Power x1, Utility x1 25233 | -2/Research | Distinguished unit "Offensive Angels" dispatched to help 25318 | -2/Research | Research machine network offline 25521 | -2/Research | Spotted Striker 25561 | -2/Research | Lost 6 allies 25587 | -2/Research | Spotted Executioner 25598 | -2/Research | Destroyed Executioner 25657 | -2/Research | Discovered new exit (range 23) 25725 | -2/Research | Identified exit to Testing 25800 | -2/Research | Lost 4 allies 25838 | -2/Research | Met up with Warlord 26364 | -2/Research | Borebot progress halted 26390 | -2/Research | Borebot progress halted 26457 | -2/Research | Spotted Striker 26482 | -2/Research | Destroyed Striker 26822 | -2/Research | Found Prototype Device 26822 | -2/Research | Identified Thermal Barrier 27063 | -2/Research | Discovered exit to Testing (range 24) 27437 | -2/Research | Discovered new exit (range 24) 27487 | -2/Research | Identified exit to Access 27522 | -2/Research | Entered Access 27522 | -1/Access | Evolved 2 slots: Power x1, Utility x1 27632 | -1/Access | Garrison activated, responded to threat 27650 | -1/Access | Repaired Hrd. Heavy Armor Plating 28037 | -1/Access | Build established: Generator-Skirmisher 28571 | -1/Access | Build established: Scavenger-Gunner 28686 | -1/Access | Discovered new exit (range 7) 29118 | -1/Access | Entered Command 29224 | -1/Command | Disengaged cave seal 29224 | -1/Command | Derelicts emerged from the dark tunnel 29224 | -1/Command | Welcomed Warlord to Command 29450 | -1/Command | Lost 8 allies 29591 | -1/Command | P-80 Master assimilated allied C2-PEP(g) 29631 | -1/Command | Lost 3 allies 29783 | -1/Command | Build established: Hacker-Gunner 30040 | -1/Command | Phase Generator disabled 30596 | -1/Command | Warlord commented on Warlord statues 30607 | -1/Command | Spotted Combat Programmer 30609 | -1/Command | Spotted M Guard 30610 | -1/Command | Spotted M Guard 30618 | -1/Command | Destroyed Combat Programmer 30626 | -1/Command | Spotted Combat Programmer 30656 | -1/Command | All MAIN.C guards destroyed 30676 | -1/Command | Found Prototype Energy Cannon 30676 | -1/Command | Identified Cld. Nova Cannon 30765 | -1/Command | Met MAIN.C 30765 | -1/Command | Hacked MAIN.C using A7's code 30785 | -1/Command | 0b10 Conduit disabled 30788 | -1/Command | MAIN.C activated Command garrisons 30820 | -1/Command | Warlord destroyed during the assault 30831 | -1/Command | Destroyed MAIN.C 30868 | -1/Command | Identified Vortex Chain Reactor 30868 | -1/Command | Identified Transdimensional Reconstructor 30868 | -1/Command | Discovered new exit (range 26) 30868 | -1/Command | Discovered new exit (range 98) 30868 | -1/Command | Extracted map data and part IDs from MAIN.C's data core 31125 | -1/Command | Build established: Generator-Gunner 31485 | -1/Command | Found Vortex Chain Reactor 31489 | -1/Command | Found Zero-point Reactor 31505 | -1/Command | Found Exp. System Purifier 31603 | -1/Command | Found Null Cannon 31624 | -1/Command | Found Beam Splitter 31626 | -1/Command | Found Exp. Phase Shifter 31643 | -1/Command | Found Adv. Kinecellerator 31722 | -1/Command | Found Hvy. Reactive Plating 32013 | *** | Establishing 0b11! Last Messages --------------- 31624_ Acquired Beam Splitter. 31626_ Dropped Adv. Phase Shifter. 31626_ Acquired Exp. Phase Shifter. 31632_ Dropped Hardcell Cannon. 31632_ Acquired Graviton Cannon. 31635_ Dropped Enh. Nova Cannon. 31643_ Dropped Adv. Kinecellerator. 31660_ Dropped Lgt. Quantum Reactor. 31661_ Dropped Particle Reactor. 31661_ Dropped Quantum Reactor. 31662_ Dropped Mic. Antimatter Reactor. 31662_ Acquired Thermal Barrier. 31665_ Acquired Adv. Force Field. 31667_ Acquired Adv. Kinecellerator. 31670_ Acquired Adv. Phase Shifter. 31672_ Dropped Adv. Transmission Jammer. 31699_ Acquired 70 matter. 31721_ Dropped Exp. System Purifier. 31722_ Acquired Hvy. Reactive Plating. 31773_ Acquired 10 matter. Map ----- +----------------------------------------------------+ | ?????????????????????????????????????????????????? | | ?????????????????????????????????????????????????? | | ?????????????????????????????????????????????????? | | ?????????????????????????????????????????????????? | | ?????????????????????????????????????????????????? | | ?????????????????????????????????????????????????? | | ?????????????????????????????????????????????????? | | ?????????????????????????????????????????????????? | | ?????????????????????????????????????????????????? | | ?????????????????????????????????????????????????? | | ?????????????????????????????????????????????????? | | ?????????????????????????????????????????????????? | | ?????????????????????????????????????????????????? | | ???????????????????????????????????????????####### | | ??????????????????????????????????########?#?????? | | ??????????????????????????????????# * #?#?##### | | ??????????????????????????????????# #?#?# " | | ??????????????????????????????????# #?#?# | | ??????????????????????????????????# #?#?# "" | | ??????????????????????????????????# #?#?# """ | | ??????????????????????????????????# #?#?#" | | ??????????????????????????????????# [ #?#?# | | ???????????????????????############=%* #?#?#"" | | ???????????????????????# # #?#?# " | | ???????????????????????# + #?#?# " | | ???????????????????????# @ ###### # #?#?# | | ????##########?????????# #????# # #?#?# * | | ????# #?????????#####????# # #?#?# | | ????# #????????########### # #?#?#=[= | | ????# "" ########?# "" ## ########?#?#*%! | | ????# """" # #?# """"% # #########![=! | | ##### """" # #?# """" *# "" % *%=% | | + "" + ### "" %+= % =%= | | ##### #^ + [% # !%= [! | | #???# # *%= ### = " =["#### | | #???# # ! #?# ###"# *!!###?# " | | #???############ ###?# #?### [=|%#?#?# | | #????# ## #???# #???# [==*#?#?##### | | #????# ## #???########"#???# !!#?#?????? | | #????# "" ## #??????????# #???# #?####### | | #????# """ ## ############%###?# #???????? | | #????# T" # # """T""" #?# #???????? | | ###### """ + # """ """ #?# #???????? | | ! # "" # #^^ #?# #???????? | | # =# # =%= #?#=! #???????? | | "" # ## ## !#?#%= #???????? | | T"" ########### ## ! #?#*! #???????? | | "" #?????????# ## ! #?# #???????? | | #?????????# ## ^ #?# #???????? | | ########### ## %### ######### | +----------------------------------------------------+ Best States ------------- Heat Dissipation 134 Energy Generation 103 Energy Capacity 1110 Matter Stores 550 Matter Capacity 550 Sight Range 16 Robot Scan Range 16 Terrain Scan Range 24 Terrain Scan Density 210 Jamming Range 16 Additional Mass Support 9 Base Temperature (-) 200 Armor Coverage 1650 Resistance: KI 40 Resistance: TH 50 Resistance: EM 25 Point Defense Rating 480 Phase Shifting 15 Evasion (%) 55 Targeting Accuracy 12 Core Analysis 8 Recoil Reduction 6 Matter Filtering 50 Kinecelleration 50 Offensive Hacking 24 Defensive Hacking 12 Item Schematics ----------------- Imp. Signal Interpreter | -8/Materials | Hacked Combat Drone Bay | -7/Data Miner | Free Lgt. Regenerative Plating | -7/Data Miner | Free Cld. Cesium-ion Thruster | -7/Data Miner | Free Exp. Targeting Computer | -7/Data Miner | Free Scatter Rocket Array | -7/Data Miner | Free Hvy. Treads | -7/Data Miner | Free Adv. Field Recycling Unit | -7/Data Miner | Free Lgt. Fission Core | -7/Data Miner | Free Tesla Rifle | -7/Data Miner | Free Imp. Heavy Treads | -7/Data Miner | Free Hvy. Phase Cannon | -7/Data Miner | Free Assault Drone Bay | -5/Zhirov | Free Exp. Heat Sink | -5/Zhirov | Free Exp. Optical Array | -5/Zhirov | Free Imp. Arc Thrower | -5/Zhirov | Free Robot Schematics ------------------ G-50 Soldier | -7/Data Miner | Free H-55 Commando | -7/Data Miner | Free W-25 Informer | -7/Data Miner | Free B-48 Gladiator | -7/Data Miner | Free Fabricated ------------ Nothing Alien Tech Used ----------------- Integrated Dissipator Achievements -------------- None Challenges ------------ None Game ------ Seed MicrowarpTransmissionMantle Manual? 0 Play Time 03:47:54 Cumulative 179.4 hours Start 2024.04.01 @ 09:35:03 End 2024.04.04 @ 20:08:33 Sessions 21 Manual Loads 0 Difficulty Rogue Special Mode None Game No. 242 Rogue 242 Adventurer 0 Explorer 0 Win Type 1 Total 4 Types 2/1/0/1/0/0/0/0/0 Lore% 65 Gallery% 75 Achievement% 66 Wizard Run 0 Options --------- Layout 0 ASCII 0 Keyboard 0 Movement Numpad Keybinds 0 Fullscreen 1 Font 18/SmallcapsGlow Map View 76x50 Zoom Use 0% Tactical HUD 1 Map Filters NONE Filters NONE Steam 1 RUN: dd2d6e1f-8c04-4256-a1bd-2197795afb39